Cogmind - Beta 12 @@@ ROGUE MODE // 2023.03.26 @ 23:25:06 Player: Mr Goldstein Result: Core destroyed Performance ------------- Evolutions (4) 2000 Regions Visited (6) 1200 Robots Destroyed (3) 15 Value Destroyed (81) 81 Prototype IDs (0) 0 Alien Tech Used (0) 0 Bonus (1325) 1325 TOTAL SCORE: 4621 Bonus ------- Pacifist 1325 Cogmind --------- Core Integrity 0/850 Matter 300/300 Energy 100/100 System Corruption 3% Temperature Cool (0) Movement Core (50) Location -6/Factory Parts ------- > --- POWER (1) -------- (None) > --- PROPULSION (3) --- (None) > --- UTILITY (9) ------ (None) > --- WEAPON (2) ------- (None) > --- INVENTORY (5) ---- Small Laser Small Laser Light Assault Rifle Peak State ------------ > --- POWER ------------ Light Ion Engine > --- PROPULSION ------- (None) > --- UTILITY ---------- (None) > --- WEAPON ----------- (None) > --- INVENTORY -------- (None) [Rating: 1] Favorites ----------- Power Light Ion Engine Engine Light Ion Engine Propulsion None Utility None Weapon None Build | -11 -10 -10 -9 -8 -7 -6 ------- Run | Jun Mat Min Mat Mat Fac Fac Slots Evolved 8 | . . . 2 2 2 2 Power . | . . . . . . . Propulsion 1 | . . . . . 1 . Utility 7 | . . . 2 2 1 2 Weapon . | . . . . . . . Parts Attached 1 | 1 . . . . . . Power 1 | 1 . . . . . . Engine 1 | 1 . . . . . . Core . | . . . . . . . Reactor . | . . . . . . . Propulsion . | . . . . . . . Treads . | . . . . . . . Leg . | . . . . . . . Wheel . | . . . . . . . Hover . | . . . . . . . Flight . | . . . . . . . Utility . | . . . . . . . Device . | . . . . . . . Storage . | . . . . . . . Processor . | . . . . . . . Hackware . | . . . . . . . Protection . | . . . . . . . Artifact . | . . . . . . . Weapon . | . . . . . . . Energy Gun . | . . . . . . . Energy Cannon . | . . . . . . . Ballistic Gun . | . . . . . . . Ballistic Cannon . | . . . . . . . Launcher . | . . . . . . . Special Weapon . | . . . . . . . Impact Weapon . | . . . . . . . Slashing Weapon . | . . . . . . . Piercing Weapon . | . . . . . . . Special Melee Weapon . | . . . . . . . Unidentified Prototypes . | . . . . . . . Parts Lost 1 | . . 1 . . . . Power 1 | . . 1 . . . . Propulsion . | . . . . . . . Utility . | . . . . . . . Weapon . | . . . . . . . Highest Loss Streak 1 | . . 1 . . . . To Critical Strikes . | . . . . . . . Average Slot Usage (%) 1 | . 14 9 . . . . Engine 1 | . 14 9 . . . . Naked Turns 593 | . . 1 70 80 345 97 Heaviest Build 3 | 3 3 3 . . . . Greatest Support 3 | 3 3 3 3 3 3 3 Greatest Overweight (x) . | . . . . . . . Average Overweight (x) . | . . . . . . . Largest Inventory Capacity 5 | 5 5 5 5 5 5 5 Average Capacity 5 | 5 5 5 5 5 5 5 Most Carried 3 | 3 3 3 3 3 3 3 Average Carried 2 | 1 3 3 3 3 3 3 Final Capacity 5 | 5 5 5 5 5 5 5 Final Carried 3 | 3 3 3 3 3 3 3 Class Distribution -------------------- 100% | Mutant Dominant Class ---------------- Mutant | -10/Materials Mutant | -10/Mines Mutant | -9/Materials Mutant | -8/Materials Mutant | -7/Factory Mutant | -6/Factory Resources | -11 -10 -10 -9 -8 -7 -6 ----------- Run | Jun Mat Min Mat Mat Fac Fac Matter Collected 212 | 210 . . . . . 2 Remotely . | . . . . . . . Salvage Created 89 | . . . . . . 89 Parts 11 | . . . . . . 11 Haulers Intercepted . | . . . . . . . Recyclers Shooed . | . . . . . . . Parts Field Recycled . | . . . . . . . Retrieved Matter . | . . . . . . . Parts Self-Destructed . | . . . . . . . Prevented . | . . . . . . . Kills | -11 -10 -10 -9 -8 -7 -6 ------- Run | Jun Mat Min Mat Mat Fac Fac Combat Hostiles Destroyed 3 | . . . . . . 3 Melee 3 | . . . . . . 3 Classes Destroyed 1 | . . . . . . 1 Swarmer 3 | . . . . . . 3 Best Kill Streak 2 | . . . . . . 2 Combat Bots Only 2 | . . . . . . 2 Max Kills in Single Turn 1 | . . . . . . 1 Gunslinging . | . . . . . . . Exploded . | . . . . . . . Melee 1 | . . . . . . 1 Uniques/NPCs Destroyed . | . . . . . . . Combat | -11 -10 -10 -9 -8 -7 -6 -------- Run | Jun Mat Min Mat Mat Fac Fac Damage Taken 2333 | . 23 73 367 370 649 851 Core 2285 | . . 48 367 370 649 851 Absorbed by Shields . | . . . . . . . Core Remaining (%) 45 | 100 . 80 8 32 7 . Volleys Fired . | . . . . . . . Largest . | . . . . . . . Hottest . | . . . . . . . Shots Fired . | . . . . . . . Gun . | . . . . . . . Cannon . | . . . . . . . Launcher . | . . . . . . . Special . | . . . . . . . Kinetic . | . . . . . . . Thermal . | . . . . . . . Explosive . | . . . . . . . Electromagnetic . | . . . . . . . Robot Hit Streak . | . . . . . . . Robot Miss Streak . | . . . . . . . Penetration Max . | . . . . . . . Secondary Targets . | . . . . . . . Shots Hit Robots . | . . . . . . . Core Hits 21 | . . . 3 2 5 11 Critical Kills . | . . . . . . . Critical Parts Destroyed . | . . . . . . . Critical Strikes . | . . . . . . . Melee Attacks . | . . . . . . . Impact . | . . . . . . . Slashing . | . . . . . . . Piercing . | . . . . . . . Sneak Attacks . | . . . . . . . Combat Hostiles . | . . . . . . . Follow-up Attacks . | . . . . . . . Damage Inflicted 375 | . 16 . 23 40 123 173 Guns . | . . . . . . . Cannons . | . . . . . . . Explosions . | . . . . . . . Melee . | . . . . . . . Ramming 375 | . 16 . 23 40 123 173 Kinetic . | . . . . . . . Thermal . | . . . . . . . Explosive . | . . . . . . . Electromagnetic . | . . . . . . . Impact . | . . . . . . . Slashing . | . . . . . . . Piercing . | . . . . . . . Highest Corruption 3 | . . . . 1 2 3 Average Corruption 1 | . . . . 1 2 2 Corruption Purged . | . . . . . . . Corruption Blocked . | . . . . . . . Effects 3 | . . . . 1 1 1 Message Errors 1 | . . . . 1 . . Matter Fused 2 | . . . . . 1 1 Overload Shots . | . . . . . . . Overflow Damage . | . . . . . . . Projectiles . | . . . . . . . Explosions . | . . . . . . . Melee . | . . . . . . . Knockbacks 1 | . . . . . 1 . Impact 1 | . . . . . 1 . Kinetic . | . . . . . . . Secondary . | . . . . . . . Self-Inflicted Damage 164 | . 8 . 11 18 52 75 Shots . | . . . . . . . Rammed 95 | . 1 . 6 5 35 48 Targets Rammed 95 | . 1 . 6 5 35 48 Kicked . | . . . . . . . Crushed . | . . . . . . . Highest Temperature . | . . . . . . . Average Temperature . | . . . . . . . Received Heat Transfer 504 | . 9 45 138 90 222 . Siege Activations . | . . . . . . . Robots Corrupted . | . . . . . . . Combat Hostiles . | . . . . . . . Parts Fried . | . . . . . . . Impact Corruptions . | . . . . . . . Robots Melted . | . . . . . . . Combat Hostiles . | . . . . . . . Parts Melted . | . . . . . . . Heat Transferred . | . . . . . . . Parts Sabotaged . | . . . . . . . Parts Stolen . | . . . . . . . Parts Stripped . | . . . . . . . Power Chain Reactions . | . . . . . . . Missiles Intercepted . | . . . . . . . Alert | -11 -10 -10 -9 -8 -7 -6 ------- Run | Jun Mat Min Mat Mat Fac Fac Peak Influence 381 | . 45 32 44 48 381 236 Initial 186 | . . 17 8 18 21 186 Average 119 | . 21 20 19 25 175 207 Maximum Alert Level 1 | . . . . . 1 1 Low Security (%) 75 | 100 100 100 100 100 61 54 Level 1 24 | . . . . . 38 45 Level 2 . | . . . . . . . Level 3 . | . . . . . . . Level 4 . | . . . . . . . Level 5 . | . . . . . . . High Security . | . . . . . . . Max Security . | . . . . . . . Squads Dispatched 8 | . 2 . 3 2 1 . Investigation 3 | . . . 2 1 . . Extermination . | . . . . . . . Reinforcement 5 | . 2 . 1 1 1 . Assault . | . . . . . . . Garrison . | . . . . . . . Intercept . | . . . . . . . Searches Triggered . | . . . . . . . Construction Impeded . | . . . . . . . Haulers Reinforced . | . . . . . . . Active Scanning Responses . | . . . . . . . Cargo Convoy Interrupts . | . . . . . . . Stealth | -11 -10 -10 -9 -8 -7 -6 --------- Run | Jun Mat Min Mat Mat Fac Fac Distress Signals . | . . . . . . . Communications Jammed . | . . . . . . . Distress Signals . | . . . . . . . Times Spotted 48 | . 7 2 10 12 14 3 Peak Tracking Total 13 | . 4 2 8 13 5 3 Tactical Retreats 9 | . 1 . 1 . 7 . Traps | -11 -10 -10 -9 -8 -7 -6 ------- Run | Jun Mat Min Mat Mat Fac Fac Traps Triggered 1 | . . . 1 . . . Indirectly . | . . . . . . . Trap Hack Attempts . | . . . . . . . Triggered . | . . . . . . . Disarmed . | . . . . . . . Reprogrammed . | . . . . . . . Reused . | . . . . . . . Traps Extracted . | . . . . . . . Installed . | . . . . . . . Triggered . | . . . . . . . Machines | -11 -10 -10 -9 -8 -7 -6 ---------- Run | Jun Mat Min Mat Mat Fac Fac Machines Disabled . | . . . . . . . Max in Single Turn . | . . . . . . . Garrison Access 1 | . . . . . 1 . Machines Repaired . | . . . . . . . Machines Sabotaged . | . . . . . . . Overloaded Fab Kills . | . . . . . . . Hacking | -11 -10 -10 -9 -8 -7 -6 --------- Run | Jun Mat Min Mat Mat Fac Fac Machines Accessed 4 | . 1 . 1 1 1 . Terminals 3 | . 1 . 1 1 . . Fabricators . | . . . . . . . Repair Stations . | . . . . . . . Recycling Units . | . . . . . . . Scanalyzers . | . . . . . . . Garrison Access 1 | . . . . . 1 . Total Hacks 10 | . 3 . 4 2 1 . Successful 3 | . 1 . 1 . 1 . Failed 7 | . 2 . 3 2 . . Catastrophic 2 | . . . 1 1 . . Database Lockouts . | . . . . . . . Manual 9 | . 3 . 4 2 . . Terminals 9 | . 3 . 4 2 . . Fabricators . | . . . . . . . Repair Stations . | . . . . . . . Recycling Units . | . . . . . . . Scanalyzers . | . . . . . . . Garrison Access 1 | . . . . . 1 . Terminal Hacks . | . . . . . . . Fabricator Hacks . | . . . . . . . Repair Station Hacks . | . . . . . . . Recycling Unit Hacks . | . . . . . . . Scanalyzer . | . . . . . . . Garrison Access Hacks 1 | . . . . . 1 . Seal Access 1 | . . . . . 1 . Unauthorized Hacks 2 | . 1 . 1 . . . Terminals 2 | . 1 . 1 . . . Operators 2 | . 1 . 1 . . . Fabricators . | . . . . . . . Repair Stations . | . . . . . . . Recycling Units . | . . . . . . . Scanalyzers . | . . . . . . . Garrison Access . | . . . . . . . Data Cores Recovered . | . . . . . . . Used . | . . . . . . . Hacking Detections 3 | . 1 . 1 1 . . Full Trace Events 2 | . . . 1 1 . . Feedback Events 1 | . . . . 1 . . Corruption 1 | . . . . 1 . . Feedback Blocked . | . . . . . . . Robot Schematics Acquired . | . . . . . . . Robots Built . | . . . . . . . Authchips . | . . . . . . . Time . | . . . . . . . Total Robot Build Rating . | . . . . . . . Part Schematics Acquired . | . . . . . . . Parts Built . | . . . . . . . Authchips . | . . . . . . . Time . | . . . . . . . Total Part Build Rating . | . . . . . . . Parts Repaired . | . . . . . . . Time . | . . . . . . . Parts Recycled . | . . . . . . . Recycled Matter . | . . . . . . . Retrieved Matter . | . . . . . . . Retrieved Components . | . . . . . . . Parts Scanalyzed . | . . . . . . . Part Schematics Acquired . | . . . . . . . Parts Damaged . | . . . . . . . Bothacking | -11 -10 -10 -9 -8 -7 -6 ------------ Run | Jun Mat Min Mat Mat Fac Fac Used RIF Installer . | . . . . . . . Robots Hacked . | . . . . . . . Non-combat . | . . . . . . . Combat . | . . . . . . . Robot Hacks Applied . | . . . . . . . Relay Couplers Released . | . . . . . . . Fabnet Peak Effective % . | . . . . . . . Robots Rewired . | . . . . . . . Allies Hacked . | . . . . . . . Hacks Repelled . | . . . . . . . Allies | -11 -10 -10 -9 -8 -7 -6 -------- Run | Jun Mat Min Mat Mat Fac Fac Total Allies . | . . . . . . . Largest Group . | . . . . . . . Highest-Rated Group . | . . . . . . . Highest-Rated Ally . | . . . . . . . Total Orders . | . . . . . . . Ally Attacks . | . . . . . . . Total Damage . | . . . . . . . Kills . | . . . . . . . Allies Corrupted . | . . . . . . . Allies Melted . | . . . . . . . Intel | -11 -10 -10 -9 -8 -7 -6 ------- Run | Jun Mat Min Mat Mat Fac Fac Robot Analysis Total . | . . . . . . . Derelict Logs Recovered 1 | . . 1 . . . . Drone Launches . | . . . . . . . Drone Recoveries . | . . . . . . . Exploration | -11 -10 -10 -9 -8 -7 -6 ------------- Run | Jun Mat Min Mat Mat Fac Fac Turns Passed 721 | 33 72 24 70 80 345 97 Spaces Moved 1207 | 57 105 48 128 151 620 98 Core 1207 | 57 105 48 128 151 620 98 Treads . | . . . . . . . Legs . | . . . . . . . Wheels . | . . . . . . . Hover . | . . . . . . . Flight . | . . . . . . . Fastest Speed 50 | 50 50 50 50 50 50 50 Average Speed 50 | 50 50 50 50 50 50 50 Slowest Speed 50 | 50 50 50 50 50 50 50 Overloaded Moves . | . . . . . . . Propulsion Burnouts . | . . . . . . . Robots Hopped . | . . . . . . . Cave-ins Triggered . | . . . . . . . Exploration Rate (%) 13 | 3 20 10 18 20 20 4 Regions Visited 6 Branch Regions 1 Pre-discovered Areas . | . . . . . . . Known Exits Taken . | . . . . . . . Unknown Exits Taken 6 | 1 1 1 1 1 1 . Scrap Searched . | . . . . . . . Spaces Dug . | . . . . . . . Terrain Destroyed . | . . . . . . . Melee . | . . . . . . . Projectile . | . . . . . . . AOE . | . . . . . . . Terrain Rammed . | . . . . . . . Walls Destroyed . | . . . . . . . Machines Disabled . | . . . . . . . Actions | -11 -10 -10 -9 -8 -7 -6 --------- Run | Jun Mat Min Mat Mat Fac Fac Total 1318 | 61 123 47 133 155 654 145 Wait 18 | . 18 . . . . . Move 1202 | 56 104 47 127 151 619 98 Hop . | . . . . . . . Pick Up 4 | 4 . . . . . . Fast Attach . | . . . . . . . Attach 1 | 1 . . . . . . Detach . | . . . . . . . Swap . | . . . . . . . Drop . | . . . . . . . Fire . | . . . . . . . Melee . | . . . . . . . Ram 93 | . 1 . 6 4 35 47 Kick . | . . . . . . . Crush . | . . . . . . . Escape Stasis . | . . . . . . . Rewire . | . . . . . . . Trap . | . . . . . . . Miscellaneous . | . . . . . . . Route ------- -11/Junkyard -10/Materials -10/Mines -9/Materials -8/Materials -7/Factory -6/Factory History --------- Turn | Location | Event 10 | -11/Junkyard | Discovered new exit (range 16) 34 | -11/Junkyard | Entered Materials 100 | -10/Materials | Discovered new exit (range 11) 106 | -10/Materials | Entered Mines 122 | -10/Mines | Learned Materials stockpile data 123 | -10/Mines | Discovered new exit (range 14) 130 | -10/Mines | Entered Materials 130 | -9/Materials | Evolved 2 slots: Utility x2 180 | -9/Materials | Core integrity fell below 50% 195 | -9/Materials | Discovered new exit (range 7) 196 | -9/Materials | Core integrity fell below 20% 200 | -9/Materials | Entered another Materials area 200 | -8/Materials | Evolved 2 slots: Utility x2 272 | -8/Materials | Core integrity fell below 50% 273 | -8/Materials | Discovered new exit (range 16) 280 | -8/Materials | Entered Factory 280 | -7/Factory | Evolved 2 slots: Propulsion x1, Utility x1 301 | -7/Factory | Build established: Mutant 482 | -7/Factory | Core integrity fell below 50% 563 | -7/Factory | Core integrity fell below 20% 617 | -7/Factory | Discovered new exit (range 16) 625 | -7/Factory | Entered another Factory area 625 | -6/Factory | Evolved 2 slots: Utility x2 672 | -6/Factory | Core integrity fell below 50% 692 | -6/Factory | Core integrity fell below 20% 722 | -6/Factory | Core destroyed Last Messages --------------- 00682_ S-27 Virus destroyed. 00689_ K-01 Serf collects debris. 00690_ Slammed into S-27 Virus. 00697_ R-10 Processor collects Lgt. Nuclear Core. 00698_ Slammed into S-27 Virus. 00701_ System corrupted: Matter fused (-10). 00701_ Acquired 2 matter. 00701_ Slammed into S-27 Virus. 00702_ R-10 Processor collects Autogun. 00703_ Slammed into S-27 Virus. 00705_ Destabilizing: System corrupted (+1). 00706_ Slammed into S-27 Virus. 00706_ Destabilizing: Core damaged (-42). 00706_ R-10 Processor collects VTOL Module. 00707_ Slammed into S-27 Virus. 00710_ R-10 Processor collects Autogun. 00711_ Slammed into S-27 Virus. 00711_ R-10 Processor collects Lgt. Nuclear Core. 00712_ Slammed into S-27 Virus. 00722_ S-27 Virus destroyed. Map ----- +----------------------------------------------------+ | ?????????????????????????????????????????????????? | | ?????????????????????????????????????????????????? | | ?????????????????????????????????????????????????? | | ?????????????????????????????????????????????????? | | ??????????????????????? ?????????????????????? | | ??????????????????????# #????????????????????? | | ??????????????????????# #????????????????????? | | ??????????????????????# #????????????????????? | | ??????????????????????# +????????????????????? | | ??????????????????????# #????????????????????? | | ??????????????????????# #????????????????????? | | ??????????????????????# #????????????????????? | | ??????????????????????# #????????????????????? | | ??????????????????????# #????????????????????? | | ??????????????????????# #????????????????????? | | ??????????????????????# +????????????????????? | | ??????????????????????# #????????????????????? | | ????????? ? ??????????#k #????????????????????? | | ????????# #####+### #????????????????????? | | ????????# % % #????????????????????? | | ????????# % % % #????????????????????? | | ????????# % %#????????????????????? | | ????????# %[% #????????????????????? | | ????????# %%%=#????????????????????? | | ????????############### %k%*#????????????????????? | | ??????????????????????#%=@%%#????????????????????? | | ??????????????######### %%%%##############???????? | | ?????????????? # % #%%%% #???????? | | ??????????????? # %%+%%% #???????? | | ???????????? = # %R#%% #???????? | | ????????????"" """ # %#% ###?????? | | ????????????"" """ # R# + ????? | | ????????????"" """ # # ! #???????? | | ????????????? # # ! #???????? | | ?????????????" """ # # #???????? | | ????????????"" """ # % #% #???????? | | ????????????"" """ + %% +% #???????? | | ?????????# ! # # #???????? | | ?????????# # # #???????? | | ??????################# ##############???????? | | ??????# #?????????????? | | ??????# #?????????????? | | ??????# #?????????????? | | ??????# """"" """"" #?????????????? | | ??????# """"" """"" #?????????????? | | ?????#####+##### """ """ #?????????????? | | ?????# * = # #?????????????? | | ?????# # """"" """"" #?????????????? | | ?????# """"""" # """"" """""??? ??????????????? | | ?????# """"""" # """ """ ???????????????????? | +----------------------------------------------------+ Best States ------------- Heat Dissipation 37 Energy Generation 10 Energy Capacity 125 Matter Stores 300 Matter Capacity 300 Sight Range 16 Terrain Scan Density 10 Evasion (%) 50 Item Schematics ----------------- None Robot Schematics ------------------ None Fabricated ------------ Nothing Alien Tech Used ----------------- None Achievements -------------- None Challenges ------------ None Game ------ Seed ShieldChromaticCycler Manual? 0 Play Time 00:09:39 Cumulative 34.8 hours Start 2023.03.26 @ 23:16:26 End 2023.03.26 @ 23:25:06 Sessions 1 Manual Loads 0 Difficulty Rogue Special Mode None Game No. 49 Rogue 49 Adventurer 0 Explorer 0 Win Type - Total 0 Types 0/0/0/0/0/0/0/0/0 Lore% 29 Gallery% 32 Achievement% 30 Wizard Run 0 Options --------- ASCII 0 Keyboard 0 Movement Arrows Keybinds 0 Fullscreen 1 Font 12/Smallcaps Map View 83x54 Tactical HUD 1 Map Filters NONE Filters NONE Steam 1 RUN: ff565451-fdbf-454a-9740-f9f035db2f33